[Event "NSV chessemy IM 2022"]
[Site "Braunschweig"]
[Date "2022.07.30"]
[Round "1.1"]
[White "Knuedel, Torben"]
[Black "Brynell, Stellan"]
[Result "1/2-1/2"]
[ECO "C15"]
[WhiteElo "2210"]
[BlackElo "2387"]
[Annotator "TA"]
[PlyCount "71"]
[EventDate "2022.07.30"]
[EventType "tourn"]
[EventCountry "GER"]
[SourceTitle "playchess.com"]
[Source "ChessBase"]
[SourceQuality "1"]
[TimeControl "40/5400+30:1800+30"]

{[%evp 12,71,19,10,48,50,39,38,60,34,37,30,55,26,47,49,47,47,61,70,86,79,103,85,79,9,9,5,10,12,11,3,7,0,29,22,27,41,43,23,23,25,30,8,4,22,18,7,0,8,43,0,0,0,0,8,8,8,8,0,0,0]} 1. e4 {[%emt 0:00:03]} e6 {[%emt 0:00:09]} 2. d4 {[%emt 0:00:06]} d5 {[%emt 0:00:03]} 3. Nc3 {[%emt 0:00:11]} Bb4 {[%emt 0:00:07]} 4. Nge2 {[%emt 0:01:08]} dxe4 {[%emt 0:00:22]} 5. a3 {[%emt 0:00:08]} Be7 {[%emt 0:00:24]} 6. Nxe4 {[%emt 0:00:08]} Nf6 {[%emt 0:00:05]} 7. N2g3 {[%emt 0:00:17] 7.Nxf6+ is the modern continuation.} Bd7 {[%emt 0:14:32] C15: French: 3 Nc3 Bb4: Unusual White 4th moves.} 8. Nxf6+ {[%emt 0:05:04]} Bxf6 {[%emt 0:00:36]} 9. Nh5 {[%emt 0:01:26]} Bc6 {[%emt 0:01:47] White is slightly better.} 10. Nxf6+ {[%emt 0:00:47]} Qxf6 {[%emt 0:01:21]} 11. Be3 {[%emt 0:03:06]} Nd7 {[%emt 0:02:28] [#]} 12. Qh5 $146 {[%emt 0:03:26]} ({Predecessor:} 12. Qd2 h6 13. O-O-O O-O-O 14. Qa5 Kb8 15. f3 Nb6 16. c4 Bxf3 17. Rd2 Be4 18. Be2 {0-1 (58) Mahia,G-Soppe,G (1930) Chacabuco 1980}) 12... Qg6 {[%emt 0:24:32]} 13. Qxg6 {[%emt 0:00:42]} hxg6 {[%emt 0:00:02]} 14. f3 {[%emt 0:03:01]} b6 {[%emt 0:01:34]} 15. Kf2 {[%emt 0:05:19]} Bb7 {[%emt 0:00:35]} 16. b4 {[%emt 0:07:53]} a5 {[%emt 0:01:05]} 17. Be2 {[%emt 0:01:54]} Ke7 {[%emt 0:04:14]} 18. bxa5 {[%emt 0:04:36]} (18. Bd3 $16) 18... Rxa5 $11 {[%emt 0:00:31]} 19. Bd2 {[%emt 0:01:37]} Ra7 {[%emt 0:03:49]} 20. Bb4+ {[%emt 0:01:32]} c5 {[%emt 0:02:30]} 21. dxc5 {[%emt 0:00:35]} bxc5 {[%emt 0:00:05]} 22. Bc3 {[%emt 0:04:29]} f6 {[%emt 0:06:37]} 23. a4 {[%emt 0:02:00]} g5 {[%emt 0:01:14]} 24. a5 {[%emt 0:03:15]} Ba6 {[%emt 0:01:39]} 25. Bxa6 {[%emt 0:01:34]} (25. h3 {is interesting.} Kd6 26. Rhd1+ Kc7 27. Bd3) 25... Rxa6 {[%emt 0:00:01]} 26. g3 {[%emt 0:04:44]} e5 {[%emt 0:01:51]} 27. Rab1 {[%emt 0:06:40]} Kd6 {[%emt 0:00:54]} 28. h4 {[%emt 0:04:26]} gxh4 {[%emt 0:00:11]} 29. Rxh4 {[%emt 0:00:29]} Rxh4 {[%emt 0:04:42]} 30. gxh4 {[%emt 0:00:03][%mdl 4096] Endgame Black should prevent Rg1. KRB-KRN} Ra7 {[%emt 0:01:08]} 31. f4 {[%emt 0:11:45]} exf4 {[%emt 0:01:37] The position is equal.} 32. Kf3 {[%emt 0:04:20]} Ne5+ {[%emt 0:05:33]} 33. Kxf4 {[%emt 0:00:31]} g5+ $1 {[%emt 0:00:30]} 34. hxg5 {[%emt 0:01:55]} fxg5+ {[%emt 0:00:05]} 35. Kxg5 {[%emt 0:01:23] [#] And now Rd1+ would win.} Nc4 {[%emt 0:00:30]} 36. Kf4 {[%emt 0:05:45] Weighted Error Value: White=0.11 (very precise) /Black=0.10 (very precise)} 1/2-1/2

[Event "NSV chessemy IM 2022"]
[Site "Braunschweig"]
[Date "2022.07.30"]
[Round "1.2"]
[White "Colbow, Collin"]
[Black "Pubantz, Jan"]
[Result "1-0"]
[ECO "B13"]
[WhiteElo "2325"]
[BlackElo "2269"]
[Annotator "TA"]
[PlyCount "99"]
[EventDate "2022.07.30"]
[EventType "tourn"]
[EventCountry "GER"]
[SourceTitle "playchess.com"]
[Source "ChessBase"]
[SourceQuality "1"]
[TimeControl "40/5400+30:1800+30"]

{[%evp 13,99,10,15,0,0,-10,-6,-36,3,8,14,13,13,17,18,19,20,22,25,-1,-1,-10,43,17,22,12,44,12,8,0,0,0,0,-8,-7,-9,8,8,0,-37,-4,0,-2,-8,95,95,618,607,1188,1167,1092,1085,12794,10875,29970,29975,29984,29985,29985,29985,29985,29985,29986,29987,29987,29985,29984,29985,29986,29986,29986,29987,29987,29988,29988,29988,29988,29989,29990,29990,29990,29988,29990,29991,29991,29990,29991,29991]} 1. e4 {[%emt 0:00:03]} c6 {[%emt 0:00:04]} 2. d4 {[%emt 0:00:06]} d5 {[%emt 0:00:04]} 3. exd5 {[%emt 0:00:05]} cxd5 {[%emt 0:00:05]} 4. c4 {[%emt 0:00:05]} Nf6 {[%emt 0:00:18][%cal Bg8f6,Bf6d5,Bd5c3][%mdl 32]} 5. Nc3 {[%emt 0:00:13]} Nc6 {[%emt 0:00:28]} 6. Nf3 {[%emt 0:00:06]} a6 {[%emt 0:00:42]} 7. cxd5 {[%emt 0:09:40] The main line 7.cxd5 scores better than 7.Bg5.} Nxd5 {[%emt 0:00:11]} 8. Bc4 {[%emt 0:06:14] B13: Caro-Kann: Exchange Variation and Panov-Botvinnik Attack.} Be6 {[%emt 0:00:49] [#] White must now prevent ...Nxc3.} 9. Bd3 $146 {[%emt 0:10:51]} ({Predecessor:} 9. Bb3 Nxc3 10. bxc3 Bxb3 11. axb3 e6 12. Bg5 Be7 13. Bxe7 Qxe7 14. O-O O-O 15. Re1 Rfd8 {½-½ (84) Giri,A (2764)-Grischuk,A (2777) chess24.com INT 2020}) 9... g6 {[%emt 0:16:49]} 10. Ng5 {[%emt 0:06:50] The position is equal.} Qd7 {[%emt 0:27:56]} 11. O-O {[%emt 0:12:01]} Nxd4 {[%emt 0:16:37] [#]} (11... Bg7 {is interesting.} 12. Nxe6 fxe6 13. Be3 O-O) 12. Bxg6 $1 {[%emt 0:19:27]} Nxc3 {[%emt 0:03:02]} ({Not} 12... fxg6 13. Qxd4 Nf6 14. Qb6 $16) (12... hxg6 {seems wilder.} 13. Qxd4 Rh5 14. g4 Nxc3 15. Qxd7+ Bxd7 16. gxh5 Ne2+) 13. Bxf7+ $1 {[%emt 0:00:27]} ({Of course not} 13. bxc3 hxg6 14. cxd4 Bd5 $17) 13... Bxf7 {[%emt 0:01:45]} 14. bxc3 {[%emt 0:00:05]} Nb3 {[%emt 0:25:44] aiming for ...Qxd1.} 15. Qxd7+ {[%emt 0:08:35]} (15. axb3 {is interesting.} Qxd1 16. Rxd1 Bxb3 17. Re1) 15... Kxd7 {[%emt 0:00:01]} 16. Nxf7 {[%emt 0:04:09]} (16. Rd1+ {keeps more tension.} Ke8 17. axb3 Bxb3 18. Re1) 16... Nxa1 {[%emt 0:00:21]} 17. Nxh8 {[%emt 0:00:05] Strongly threatening Nf7.} Bg7 {[%emt 0:00:14]} (17... Ke8 $1 $11 18. Rd1 Bg7) 18. Nf7 {[%emt 0:05:37]} (18. Bd2 $5 {[%cal Rh8f7]}) 18... Bxc3 {[%emt 0:01:30]} 19. Ng5 {[%emt 0:01:43]} b5 {[%emt 0:02:10]} 20. Rd1+ {[%emt 0:01:25]} Ke8 {[%emt 0:01:05]} 21. Nxh7 {[%emt 0:00:29]} b4 {[%emt 0:00:26]} 22. Ng5 {[%emt 0:00:25]} a5 {[%emt 0:00:30]} 23. Ne4 {[%emt 0:00:49]} Bh8 {[%emt 0:00:33]} 24. Bd2 {[%emt 0:09:35]} Rc8 {[%emt 0:00:26]} 25. Kf1 {[%emt 0:02:09]} Nc2 {[%emt 0:00:36]} 26. Rb1 {[%emt 0:01:40]} Rc4 {[%emt 0:00:23]} (26... a4 $5 {[%cal Rb4b3]} 27. Bc1 (27. Bxb4 Rb8 $17) 27... b3 28. axb3 a3 29. Bxa3 Nxa3 $15) 27. f3 {[%emt 0:00:16][%cal Bf2f3,Bf3e4][%mdl 32]} a4 {[%emt 0:00:28]} 28. Ke2 {[%emt 0:00:13] Threatens to win with Kd3.} b3 {[%emt 0:00:38]} (28... Rc8 $1 $11) 29. axb3 $16 {[%emt 0:00:04]} Rxe4+ {[%emt 0:00:30][%mdl 8192] This move loses the game for Black.} 30. fxe4 {[%emt 0:00:23][%mdl 4096] Endgame KRB-KBN} a3 {[%emt 0:00:05]} 31. Kd3 {[%emt 0:00:20]} Nd4 {[%emt 0:00:54]} 32. Bc3 {[%emt 0:01:22]} a2 {[%emt 0:00:09]} 33. Ra1 {[%emt 0:00:32]} Nxb3 {[%emt 0:00:18]} 34. Bxh8 {[%emt 0:00:09] White mates.} Nxa1 {[%emt 0:00:26]} 35. Bxa1 $18 {[%emt 0:01:47] KB-KPP} Kf7 {[%emt 0:00:27]} 36. Kc4 {[%emt 0:00:00]} Kg6 {[%emt 0:00:04]} 37. g3 {[%emt 0:00:00]} Kg5 {[%emt 0:00:03]} 38. h3 {[%emt 0:00:00]} Kg6 {[%emt 0:00:04]} 39. Kb3 {[%emt 0:00:00]} Kf7 {[%emt 0:00:26]} 40. Kxa2 {[%emt 0:00:00] KB-KP} Ke6 {[%emt 0:00:02]} 41. Kb3 {[%emt 0:29:28]} Kf7 {[%emt 0:32:00]} 42. Kc4 {[%emt 0:00:05]} Ke6 {[%emt 0:00:13]} 43. Kc5 {[%emt 0:00:04]} Kf7 {[%emt 0:00:04]} 44. Kd5 {[%emt 0:00:04]} Ke8 {[%emt 0:00:42]} 45. Ke6 {[%emt 0:00:05]} Kf8 {[%emt 0:02:38]} 46. Bb2 {[%emt 0:00:07]} Ke8 {[%emt 0:00:00]} 47. Ba3 {[%emt 0:00:05]} Kf8 {[%emt 0:00:00]} 48. Bxe7+ {[%emt 0:00:06]} Ke8 {[%emt 0:00:00]} 49. Bd6 {[%emt 0:00:07]} Kd8 {[%emt 0:00:00]} 50. h4 {[%emt 0:00:06] Weighted Error Value: White=0.08 (flawless) /Black=0.42} 1-0

[Event "NSV chessemy IM 2022"]
[Site "Braunschweig"]
[Date "2022.07.30"]
[Round "1.3"]
[White "von Mettenheim, Johannes"]
[Black "Sriram, Jha"]
[Result "1/2-1/2"]
[ECO "D15"]
[WhiteElo "2253"]
[BlackElo "2361"]
[Annotator "TA"]
[PlyCount "80"]
[EventDate "2022.07.30"]
[EventType "tourn"]
[EventCountry "GER"]
[SourceTitle "playchess.com"]
[Source "ChessBase"]
[SourceQuality "1"]
[TimeControl "40/5400+30:1800+30"]

{[%evp 11,80,27,30,20,29,18,31,22,18,11,29,17,11,-25,-27,-27,-21,-25,-40,-119,-121,-102,-104,-77,-53,-56,-49,-37,-41,-50,37,37,38,48,108,106,111,106,113,0,0,0,0,0,0,-439,-374,-366,121,0,0,0,0,0,0,0,0,0,0,0,0,0,0,-383,141,130,154,142,146,0,0]} 1. d4 {[%emt 0:00:03]} d5 {[%emt 0:00:41]} 2. c4 {[%emt 0:00:07]} c6 {[%emt 0:00:05]} 3. Nc3 {[%emt 0:00:06]} Nf6 {[%emt 0:00:15]} 4. Nf3 {[%emt 0:00:06]} a6 {[%emt 0:02:45]} 5. e3 {[%emt 0:03:49]} b5 {[%emt 0:01:58]} 6. b3 {[%emt 0:16:02]} Bg4 {[%emt 0:00:11]} 7. Bb2 {[%emt 0:08:15] 7.a4 is the modern continuation. D15: Slav Defence: 4 Nc3 a6 and gambit lines after 4 Nc3 dxc4.} e6 {[%emt 0:01:53]} 8. Bd3 {[%emt 0:00:25]} Nbd7 {[%emt 0:01:55]} 9. cxd5 {[%emt 0:00:43] White is slightly better.} cxd5 {[%emt 0:00:34]} 10. O-O {[%emt 0:00:28]} Be7 {[%emt 0:06:04]} 11. Qe2 {[%emt 0:13:33]} O-O {[%emt 0:04:42] [#]} 12. a4 $146 {[%emt 0:00:12]} ({Predecessor:} 12. h3 Bh5 13. g4 Bg6 14. a3 Ne4 15. Nd2 Nxd2 16. Qxd2 Bxd3 17. Qxd3 Rc8 18. Ne2 {0-1 (25) Rothman,S (1921)-Toma,A ICCF email 2002}) 12... b4 {[%emt 0:00:46]} 13. Nb1 {[%emt 0:00:06]} Ne4 {[%emt 0:29:01]} 14. Bxa6 {[%emt 0:08:35]} Bd6 {[%emt 0:00:42][%cal Oa8a6] Strongly threatening ...Rxa6!} 15. Bd3 {[%emt 0:04:55]} (15. Bb5 $15) 15... f5 $1 $17 {[%emt 0:00:18] aiming for ...Qf6.} 16. h3 {[%emt 0:12:04]} Bh5 {[%emt 0:01:35]} 17. Rc1 {[%emt 0:01:57]} Rf6 {[%emt 0:01:58]} (17... f4 $5 {[%cal Rf4e3]} 18. Nbd2 Nxd2 19. Qxd2 Bxf3 20. gxf3 Qg5+ 21. Kf1 (21. Kh1 Rf6 $17) 21... Qh5 $15) 18. Nbd2 {[%emt 0:02:32]} Nxd2 $1 {[%emt 0:13:20]} 19. Qxd2 {[%emt 0:00:07]} Bxf3 {[%emt 0:00:07]} 20. gxf3 {[%emt 0:00:14]} Rg6+ {[%emt 0:00:02]} (20... Rh6 $1 $15 21. Kf1 Rxh3) 21. Kf1 $1 $14 {[%emt 0:00:57]} Qh4 {[%emt 0:00:07]} (21... Qg5 22. Ke2 $16) 22. Rc6 {[%emt 0:02:04]} Qxh3+ {[%emt 0:01:18]} (22... Nf6 $1 $14) 23. Ke2 $16 {[%emt 0:00:04]} Qh2 {[%emt 0:06:29]} (23... e5 $2 24. dxe5 Nxe5 25. Bxe5 Bxe5 26. Rxg6 Bxa1 27. Ra6 $18) 24. Rf1 $1 $36 {[%emt 0:00:48][%mdl 2048] White is in control.} Nf6 {[%emt 0:06:20]} 25. Qc1 {[%emt 0:02:56]} (25. Bc1 $16) 25... Rg2 $1 $11 {[%emt 0:01:17]} 26. Rc8+ {[%emt 0:04:10]} Rxc8 {[%emt 0:00:23]} 27. Qxc8+ {[%emt 0:00:07]} Kf7 {[%emt 0:00:05] Threatens to win with ...Bg3.} 28. Ke1 $2 {[%emt 0:00:35][%mdl 8192]} (28. Bc1 $11) 28... Bg3 $1 $19 {[%emt 0:11:30][%cal Rg3f2]} 29. Qc2 {[%emt 0:00:06]} f4 $2 {[%emt 0:00:52] [#]} ({Better is} 29... g5 $1 $19 {[%cal Rg5g4] White must now prevent ...g4.} 30. Kd1 g4) 30. Qc7+ {[%emt 0:02:31]} (30. Bc1 $1 $16) 30... Kf8 {[%emt 0:00:22]} 31. Qc5+ {[%emt 0:01:29]} Kf7 {[%emt 0:00:27]} 32. Qc7+ {[%emt 0:00:06]} Kg8 {[%emt 0:02:18] ...Kh8 is the strong threat.} 33. Qc8+ {[%emt 0:01:40]} Kf7 {[%emt 0:00:05]} 34. Qc7+ {[%emt 0:00:13]} Kg8 {[%emt 0:00:34]} 35. Qc8+ {[%emt 0:00:35]} Kf7 {[%emt 0:00:05]} 36. Qc7+ {[%emt 0:00:53]} Kf8 {[%emt 0:07:26] Hoping for ...Ne8.} 37. Qc2 $4 {[%emt 0:15:27][%mdl 8192]} (37. Qd6+ $11 {and White has nothing to worry.} Kg8 38. Qd8+ (38. fxg3 Qxg3+ 39. Kd1 Rd2+ 40. Kc1 Rxd3 $11) (38. Qxe6+ Kh8 $17) 38... Kf7 39. Qc7+) 37... Kf7 $2 {[%emt 0:00:30]} ({Black should try} 37... fxe3 $19 {[%cal Rg2f2]} 38. Kd1 (38. Qc8+ $2 Kf7 $19) 38... Rxf2 39. Rxf2 exf2 40. Qc8+ Ne8) 38. Bc1 $16 {[%emt 0:00:30]} ({Don't play} 38. Qc7+ $6 Kf8 $11) 38... fxe3 {[%emt 0:00:30]} 39. Bxe3 {[%emt 0:00:30]} Bf4 {[#] And now ...Bxe3 would win.} 40. Bxf4 (40. Bc1 $1 $16) 40... Qxf4 {White used his chance.  Weighted Error Value: White=0.61/Black=0.43} 1/2-1/2

[Event "NSV chessemy IM 2022"]
[Site "Braunschweig"]
[Date "2022.07.30"]
[Round "1.4"]
[White "Voege, Tobias"]
[Black "Sumets, Andrey"]
[Result "1-0"]
[ECO "E61"]
[WhiteElo "2272"]
[BlackElo "2542"]
[Annotator "TA"]
[PlyCount "150"]
[EventDate "2022.07.30"]
[EventType "tourn"]
[EventCountry "GER"]
[SourceTitle "playchess.com"]
[Source "ChessBase"]
[SourceQuality "1"]
[TimeControl "40/5400+30:1800+30"]

{[%evp 15,150,0,81,74,76,68,106,96,118,89,99,99,116,109,130,133,204,209,210,211,295,229,341,283,474,438,468,456,457,351,408,416,398,341,326,225,225,225,218,235,291,287,394,376,408,411,392,401,579,575,600,489,501,341,293,269,264,267,303,260,383,364,354,370,456,331,464,312,307,295,301,299,281,282,234,0,291,304,288,288,307,271,316,318,414,407,484,554,538,497,835,842,656,543,530,515,469,445,403,372,1737,1892,4153,4137,4153,1333,2377,2156,29968,4137,4137,4137,7222,4137,4153,2408,4149,0,29972,29973,29980,29981,29981,29982,29982,29983,29984,29985,29985,29986,29986,29987,29987,29988,29988,29989,29992]} 1. d4 {[%emt 0:00:02]} Nf6 {[%emt 0:00:08]} 2. c4 {[%emt 0:00:06]} g6 {[%emt 0:00:23]} 3. Nc3 {[%emt 0:00:18]} Bg7 {[%emt 0:00:04]} 4. Nf3 {[%emt 0:00:20]} d6 {[%emt 0:00:21]} 5. Bg5 {[%emt 0:00:16][%cal Bc1g5,Bg5h4,Bh4g3][%mdl 32]} O-O {[%emt 0:00:56]} 6. e3 {[%emt 0:00:09]} c5 {[%emt 0:00:19]} 7. d5 $1 {[%emt 0:00:34][%mdl 4] is currently scoring better than 7.Be2.} h6 {[%emt 0:03:10]} 8. Bh4 {[%emt 0:00:04]} e5 {[%emt 0:02:43]} (8... g5 $11 9. Bg3 Bf5) 9. Nd2 $16 {[%emt 0:08:14] E61: King's Indian: Early deviations for White, including Smyslov System.} Na6 {[%emt 0:16:48]} 10. Be2 {[%emt 0:03:49] [#]} g5 $146 {[%emt 0:09:12]} ({Predecessor:} 10... Qd7 11. a3 Nh7 12. g4 Nc7 13. h3 a6 14. Na4 Rb8 15. Nb6 Qe8 16. Ne4 g5 {1-0 (30) Speelman,J (2600)-Arencibia Rodriguez,W (2550) Salamanca 1998}) 11. Bg3 {[%emt 0:00:09] White is better.} Ne8 {[%emt 0:02:05]} 12. Qc2 {[%emt 0:17:22]} f5 {[%emt 0:01:32] [#]} 13. f3 $1 {[%emt 0:01:15] White is more active.} Nf6 {[%emt 0:02:49]} 14. O-O-O {[%emt 0:07:18]} Bd7 {[%emt 0:07:21]} 15. h4 {[%emt 0:08:12]} Qe7 {[%emt 0:13:49]} (15... Nb4 $16 16. Qb1 Ne8) 16. hxg5 $18 {[%emt 0:02:19]} hxg5 {[%emt 0:00:05]} 17. a3 {[%emt 0:14:09]} Qf7 {[%emt 0:19:06]} 18. Bd3 {[%emt 0:06:53]} Ne8 {[%emt 0:02:13]} (18... Qg6 {was worth a try.} 19. Bf2 Rae8) 19. Bf2 {[%emt 0:28:31][%cal Og2g4] Black must now prevent g4!} Nac7 $2 {[%emt 0:00:57]} (19... Qe7 {is a better defense.} 20. Nf1 Nac7) 20. g4 {[%emt 0:03:18]} b5 {[%emt 0:02:07]} (20... e4 $2 21. fxe4 fxg4 {[#]} 22. e5 $1 Bxe5 23. Bh7+ Kg7 24. Nce4 $18) 21. gxf5 {[%emt 0:04:30]} bxc4 {[%emt 0:00:35]} 22. Be4 {[%emt 0:02:38] f6 is the strong threat.} Bxf5 {[%emt 0:14:47]} 23. Rdg1 {[%emt 0:01:42]} Bxe4 {[%emt 0:01:35]} 24. Qxe4 {[%emt 0:03:16][%csl Gh1][%cal Re4h7] Really sharp!} Qf5 {[%emt 0:00:10] Prevents Qh7+.} 25. Qxf5 {[%emt 0:02:14]} (25. Nxc4 Qxe4 26. Nxe4 Rxf3 $16) 25... Rxf5 {[%emt 0:00:06]} 26. e4 {[%emt 0:00:45]} Rf6 {[%emt 0:01:18]} 27. Be3 {[%emt 0:00:33]} (27. Rxg5 Kf8 28. Rf5 (28. Nxc4 Bh6 $14) 28... Rxf5 29. exf5 Bf6) 27... Rb8 {[%emt 0:02:42]} 28. Bxg5 {[%emt 0:00:38]} ({Resist} 28. Nxc4 $6 Rxf3 29. Bxg5 (29. Rxg5 Na8 $16) 29... Rb7 $18) (28. Rxg5 $6 a6 29. Rh4 (29. Nxc4 Rxf3 30. Rhg1 Rd8 $16) 29... Kf7 $18) 28... Rf7 {[%emt 0:00:07]} 29. Rh3 {[%emt 0:00:51]} Nb5 {[%emt 0:00:48]} 30. Nxb5 {[%emt 0:00:25]} Rxb5 {[%emt 0:00:05]} 31. Nxc4 {[%emt 0:00:25]} Rfb7 {[%emt 0:00:14]} (31... Rb3 $142 32. Bh6 a6) 32. Bh6 {[%emt 0:01:00]} Rf7 {[%emt 0:02:59]} 33. Rg6 {[%emt 0:00:56]} Rf6 {[%emt 0:01:37]} 34. Rxf6 {[%emt 0:00:37]} Bxf6 {[%emt 0:00:06]} 35. Kc2 {[%emt 0:00:15]} Rb7 {[%emt 0:00:15]} 36. Rg3+ {[%emt 0:00:22]} Kh8 {[%emt 0:00:17]} 37. Be3 {[%emt 0:00:40]} Rh7 {[%emt 0:00:26]} (37... Kh7 {was necessary.} 38. f4 exf4 39. Bxf4 Re7) 38. b4 {[%emt 0:00:41]} cxb4 {[%emt 0:00:05]} 39. axb4 {[%emt 0:00:03]} Rf7 {[%emt 0:03:09]} 40. Kb3 {[%emt 0:00:23]} Kh7 {[%emt 0:01:31]} (40... a6 $142 41. f4 exf4 42. Bxf4 Be7) 41. f4 {[%emt 0:15:19]} exf4 {[%emt 0:02:46]} 42. Bxf4 {[%emt 0:00:03]} Be7 {[%emt 0:01:08]} 43. Rg4 {[%emt 0:01:29]} Bf8 {[%emt 0:04:11]} 44. Ka4 {[%emt 0:03:38]} Rc7 {[%emt 0:00:27]} 45. Kb3 {[%emt 0:01:39]} (45. Rh4+ $18 Kg8 46. Kb3) 45... Rd7 $2 {[%emt 0:01:16][%mdl 8192]} (45... Rf7 $1 $11 {and Black has nothing to worry.}) 46. Rh4+ {[%emt 0:01:01]} Kg8 {[%emt 0:00:53]} 47. Na5 {[%emt 0:02:05]} Be7 {[%emt 0:01:16]} 48. Rh1 {[%emt 0:01:23]} Bd8 {[%emt 0:02:15]} 49. Nc6 {[%emt 0:09:17]} Bb6 {[%emt 0:00:07]} 50. Rh6 {[%emt 0:01:06] Against Nf6} a6 {[%emt 0:04:54]} 51. Re6 {[%emt 0:00:57]} Kf7 {[%emt 0:01:19]} 52. Nb8 {[%emt 0:01:58]} Re7 {[%emt 0:06:56]} (52... Rd8 $142 53. Nxa6 Ba7) 53. Rxe7+ {[%emt 0:00:26]} Kxe7 {[%emt 0:00:06]} 54. Nxa6 {[%emt 0:01:30][%mdl 4096] Endgame KBN-KBN} Kd7 {[%emt 0:00:11]} 55. Kc4 {[%emt 0:01:00]} Nf6 {[%emt 0:00:05]} 56. Kd3 {[%emt 0:00:32]} Ng4 {[%emt 0:00:04]} 57. Bg3 {[%emt 0:01:10]} Kc8 $2 {[%emt 0:00:47]} (57... Ba7 58. Kc4 Ne3+ 59. Kb5 Nc2) 58. Bxd6 {[%emt 0:01:50]} Nf2+ {[%emt 0:00:04]} 59. Kc4 {[%emt 0:00:09] Hoping for Bc5.} Nxe4 {[%emt 0:00:04]} 60. Bf8 {[%emt 0:01:34]} (60. Bf4 $142 Bf2 61. Kb5) 60... Bf2 {[%emt 0:01:02]} 61. Nc5 {[%emt 0:00:20]} Nf6 {[%emt 0:00:53]} 62. Bd6 {[%emt 0:00:44]} (62. Be7 $142 Nd7 63. Kb5 Bg3 64. Ne4 Be5 65. d6 Bh2 66. Bg5 Bg1 67. Kc6) 62... Ng4 {[%emt 0:01:41]} 63. Bf4 {[%emt 0:00:49]} Be3 {[%emt 0:00:20]} 64. Bg3 {[%emt 0:00:21] White wants to mate with d6.} Nf6 {[%emt 0:02:19]} 65. Bh4 {[%emt 0:00:39]} Ne8 {[%emt 0:00:54]} 66. Bg3 {[%emt 0:01:15]} (66. Kb5 $18 Bd2 67. Bg3) 66... Nf6 $1 {[%emt 0:00:05]} 67. d6 {[%emt 0:00:21] White mates.} Bd2 {[%emt 0:00:26]} 68. Bh4 {[%emt 0:00:41]} Nd7 {[%emt 0:00:26]} 69. Nxd7 {[%emt 0:00:38]} Kxd7 {[%emt 0:00:04] KB-KB} 70. Bg3 {[%emt 0:00:05]} Bc1 {[%emt 0:01:33]} 71. Kd5 {[%emt 0:00:21]} Be3 {[%emt 0:00:06]} 72. b5 {[%emt 0:00:35]} Bb6 {[%emt 0:00:18]} 73. Be1 {[%emt 0:00:05]} Be3 {[%emt 0:01:03]} 74. Bb4 {[%emt 0:00:00]} Bb6 {[%emt 0:00:26]} 75. Bc5 {[%emt 0:00:00]} Ke8 {[%emt 0:09:23] Weighted Error Value: White=0.31/Black=0.54} 1-0